Workbook

Sheet 销售预算
A1: 销售预算
A2: 季 度 | B2: 1 | C2: 2 | D2: 3 | E2: 4 | F2: 全年
A3: 预计销售量（件）
A4: A产品 | B4: 1500 | C4: 950 | D4: 1100 | E4: 1200 | F4: 4750
A5: B产品 | B5: 1100 | C5: 1000 | D5: 950 | E5: 1000 | F5: 4050
A6: 预计单位售价（元）
A7: A产品 | B7: 97 | C7: 97 | D7: 97 | E7: 97 | F7: 97
A8: B产品 | B8: 85 | C8: 85 | D8: 85 | E8: 85 | F8: 85
A9: 销售收入（元）
A10: A产品 | B10: =B4*B7 -> 145500 | C10: =C4*C7 -> 92150 | D10: 106700 | E10: 116400 | F10: 460750
A11: B产品 | B11: =B5*B8 -> 93500 | C11: =C5*C8 -> 85000 | D11: 80750 | E11: 85000 | F11: 344250
A12: 合 计 | B12: =B10+B11 -> 239000 | C12: =C10+C11 -> 177150 | D12: 187450 | E12: 201400 | F12: 805000
A13: 预计现金收入（元）
A14: 上年应收账款 | B14: 17200 | F14: =SUM(B14:E14) -> 17200
A15: 第一季度 | B15: =B12*0.6 -> 143400 | C15: =B12-B15 -> 95600 | F15: =SUM(B15:E15) -> 239000
A16: 第二季度 | C16: =C12*0.6 -> 106290 | D16: =C12-C16 -> 70860 | F16: 177150
A17: 第三季度 | D17: =D12*0.6 -> 112470 | E17: =D12-D17 -> 74980 | F17: 187450
A18: 第四季度 | E18: =E12*0.6 -> 120840 | F18: 120840
A19: 现金合计 | F19: =SUM(F14:F18) -> 741640
A20: 注：在本例中，假定每季度销售收人中，本季收到现金60％，另外的40％要到下季度才能收到现金。

Sheet 生产预算
A1: 生产预算
A2: 单位：件
A3: 季度 | B3: 1 | C3: 2 | D3: 3 | E3: 4 | F3: 全年
A4: A产品
A5: 预计销售量 | B5: 1500 | C5: 950 | D5: 1100 | E5: 1200 | F5: 4750
A6: 加：预计期末存货 | B6: =C5*12% -> 114 | C6: =D5*12% -> 132 | D6: 144 | E6: 150 | F6: 150
A7: 预计需要量 | B7: =B5+B6 -> 1614 | C7: =C5+C6 -> 1082 | D7: 1244 | E7: 1350 | F7: 4900
A8: 减：期初存货 | B8: 80 | C8: 110 | D8: 120 | E8: 90 | F8: 90
A9: 预计生产量 | B9: =B5+B6-B8 -> 1534 | C9: =C5+C6-C8 -> 972 | D9: 1124 | E9: 1260 | F9: 4810
A10: B产品
A11: 预计销售量 | B11: 1100 | C11: 1000 | D11: 950 | E11: 1000 | F11: 4050
A12: 加：预计期末存货 | B12: =C11*12% -> 120 | C12: =D11*12% -> 114 | D12: 120 | E12: 70 | F12: 70
A13: 预计需要量 | B13: =SUM(B11:B12) -> 1220 | C13: =SUM(C11:C12) -> 1114 | D13: 1070 | E13: 1070 | F13: 4120
A14: 减：期初存货 | B14: 75 | C14: 75 | D14: 50 | E14: 65 | F14: 60
A15: 预计生产量 | B15: =B11+B12-B14 -> 1145 | C15: =C11+C12-C14 -> 1039 | D15: 1020 | E15: 1005 | F15: 4060
A16: 注：预计年末A产品存货的数为150件,B产品存货的数为70件。

Sheet 直接材料和采购预算
A1: 直接材料和采购预算
A2: 季度 | B2: 1 | C2: 2 | D2: 3 | E2: 4 | F2: 全年
A3: A产品
A4: 预计生产量 | B4: =生产预算!B9 -> 1534 | C4: =生产预算!C9 -> 972 | D4: =生产预算!D9 -> 1124 | E4: =生产预算!E9 -> 1260 | F4: =生产预算!F9 -> 4810
A5: 单位产品材料用量（P材料） | B5: 6 | C5: 6 | D5: 6 | E5: 6 | F5: 6
A6: 生产需要量 | B6: =B4*B5 -> 9204 | C6: =C4*C5 -> 5832 | D6: 6744 | E6: 7560 | F6: 28860
A7: 加：预计期末存量 | B7: =C6*0.2 -> 1166.4 | C7: =D6*0.2 -> 1348.8 | D7: 1512 | E7: 150 | F7: 150
A8: 合计 | B8: =B6+B7 -> 10370.4 | C8: =C6+C7 -> 7180.8 | D8: 8256 | E8: 7710 | F8: 29010
A9: 减：预计期初存量 | B9: 520 | C9: 530 | D9: 500 | E9: 510 | F9: 500
A10: 预计材料采购量 | B10: =B8-B9 -> 9850.4 | C10: =C8-C9 -> 6650.8 | D10: 7756 | E10: 7200 | F10: 28510
A11: 单价 | B11: 8 | C11: 8 | D11: 8 | E11: 8 | F11: 8
A12: 预计采购金额 | B12: =B10*B11 -> 78803.2 | C12: =C10*C11 -> 53206.4 | D12: 62048 | E12: 57600 | F12: 228080
A13: B产品
A14: 预计生产量 | B14: =生产预算!B15 -> 1145 | C14: =生产预算!C15 -> 1039 | D14: =生产预算!D15 -> 1020 | E14: =生产预算!E15 -> 1005 | F14: =生产预算!F15 -> 4060
A15: 单位产品材料用量（Q材料） | B15: 5 | C15: 5 | D15: 5 | E15: 5 | F15: 5
A16: 生产需要量 | B16: =B14*B15 -> 5725 | C16: =C14*C15 -> 5195 | D16: 5100 | E16: 5025 | F16: 20300
A17: 加：预计期末存量 | B17: =C16*0.2 -> 1039 | C17: =D16*0.2 -> 1020 | D17: 1005 | E17: 70 | F17: 70
A18: 合计 | B18: =B16+B17 -> 6764 | C18: =C16+C17 -> 6215 | D18: 6105 | E18: 5095 | F18: 20370
A19: 减：预计期初存量 | B19: 520 | C19: 530 | D19: 500 | E19: 510 | F19: 500
A20: 预计材料采购量 | B20: =B18*B19 -> 3517280 | C20: =C18*C19 -> 3293950 | D20: 3052500 | E20: 2598450 | F20: 10185000
A21: 单价 | B21: 7 | C21: 7 | D21: 7 | E21: 7 | F21: 7
A22: 预计采购金额 | B22: =B20*B21 -> 24620960 | C22: =C20*C21 -> 23057650 | D22: 21367500 | E22: 18189150 | F22: 71295000
A23: 预计现金支出（元）
A24: 上年应付账款 | B24: 18500 | F24: =SUM(B24:E24) -> 18500
A25: 第一季度 | B25: =(B12+B22)*0.7 -> 17289834.24 | C25: =(B12+B22)*0.3 -> 7409928.96 | F25: =SUM(B25:E25) -> 24699763.2
A26: 第二季度 | C26: =(C12+C22)*0.7 -> 16177599.48 | D26: =(C12+C22)*0.3 -> 6933256.92 | F26: 23110856.4
A27: 第三季度 | D27: =(D12+D22)*0.7 -> 15000683.6 | E27: =(D12+D22)*0.3 -> 6428864.4 | F27: 21429548
A28: 第四季度 | E28: =(E12+E22)*0.7 -> 12772725 | F28: 12772725
A29: 现金支出合计 | F29: =SUM(F24:F28) -> 82031392.6
A30: 注：在本例中，假定材料采购的货款本季度付清现金70％，另外的30％要到下季度才能付清。

Sheet 直接人工成本预算
A1: 直接人工预算
A2: 季度 | B2: 1 | C2: 2 | D2: 3 | E2: 4 | F2: 全年
A3: 预计生产量（件） | B3: =生产预算!B15+生产预算!B9 -> 2679 | C3: =生产预算!C15+生产预算!C9 -> 2011 | D3: =生产预算!D15+生产预算!D9 -> 2144 | E3: =生产预算!E15+生产预算!E9 -> 2265 | F3: =SUM(B3:E3) -> 9099
A4: 单位产品工时（小时） | B4: 4 | C4: 4 | D4: 4 | E4: 4 | F4: 4
A5: 人工总工时（小时） | B5: =B3*B4 -> 10716 | C5: =C3*C4 -> 8044 | D5: 8576 | E5: 9060 | F5: 36396
A6: 每小时人工成本（元） | B6: 3 | C6: 3 | D6: 3 | E6: 3 | F6: 3
A7: 人工总成本（元） | B7: =B5*B6 -> 32148 | C7: =C5*C6 -> 24132 | D7: 25728 | E7: 27180 | F7: 109188
A8: 注：假设单位产品工时为4小时/件，每小时人工成本为3元/件

Sheet 制造费用预算
A1: 制造费用预算
A2: 季度 | B2: 1 | C2: 2 | D2: 3 | E2: 4 | F2: 全年
A3: 变动制造费用
A4: 间接人工（1.5元/件） | B4: =(生产预算!B15+生产预算!B9)*1.5 -> 4018.5 | C4: =(生产预算!C15+生产预算!C9)*1.5 -> 3016.5 | D4: =(生产预算!D15+生产预算!D9)*1.5 -> 3216 | E4: =(生产预算!E15+生产预算!E9)*1.5 -> 3397.5 | F4: =SUM(B4:E4) -> 13648.5
A5: 间接材料（1.5元/件） | B5: =(生产预算!B15+生产预算!B9)*1.5 -> 4018.5 | C5: =(生产预算!C15+生产预算!C9)*1.5 -> 3016.5 | D5: =(生产预算!D15+生产预算!D9)*1.5 -> 3216 | E5: =(生产预算!E15+生产预算!E9)*1.5 -> 3397.5 | F5: =SUM(B5:E5) -> 13648.5
A6: 修理费（1.2元/件） | B6: =(生产预算!B15+生产预算!B9)*1.2 -> 3214.8 | C6: =(生产预算!C15+生产预算!C9)*1.2 -> 2413.2 | D6: =(生产预算!D15+生产预算!D9)*1.2 -> 2572.8 | E6: =(生产预算!E15+生产预算!E9)*1.2 -> 2718 | F6: =(生产预算!F15+生产预算!F9)*1.2 -> 10644
A7: 水电费（0.8元/件） | B7: =(生产预算!B15+生产预算!B9)*0.8 -> 2143.2 | C7: =(生产预算!C15+生产预算!C9)*0.8 -> 1608.8 | D7: =(生产预算!D15+生产预算!D9)*0.8 -> 1715.2 | E7: =(生产预算!E15+生产预算!E9)*0.8 -> 1812 | F7: =(生产预算!F15+生产预算!F9)*0.8 -> 7096
A8: 合计 | B8: =SUM(B4:B7) -> 13395 | C8: =SUM(C4:C7) -> 10055 | D8: 10720 | E8: 11325 | F8: 45037
A9: 固定费用
A10: 修理费 | B10: 2500 | C10: 2300 | D10: 2350 | E10: 2400 | F10: =SUM(B10:E10) -> 9550
A11: 折旧 | B11: 2000 | C11: 2000 | D11: 2000 | E11: 2000 | F11: =SUM(B11:E11) -> 8000
A12: 管理人员工资 | B12: 600 | C12: 600 | D12: 600 | E12: 600 | F12: 2400
A13: 保险费 | B13: 20 | C13: 20 | D13: 20 | E13: 20 | F13: 80
A14: 财产税 | B14: 120 | C14: 120 | D14: 120 | E14: 120 | F14: 480
A15: 固定费用合计 | B15: =SUM(B10:B14) -> 5240 | C15: =SUM(C10:C14) -> 5040 | D15: 5090 | E15: 5140 | F15: 20510
A16: 费用总计 | B16: =B8+B15 -> 18635 | C16: =C8+C15 -> 15095 | D16: 15810 | E16: 16465 | F16: 65547
A17: 减：折旧 | B17: 2000 | C17: 2000 | D17: 2000 | E17: 2000 | F17: =SUM(B17:E17) -> 8000
A18: 现金支出的费用 | B18: =B16-B17 -> 16635 | C18: =C16-C17 -> 13095 | D18: 13810 | E18: 14465 | F18: 57547

Sheet 产品成本预算
A1: 产品成本预算（A产品）
A2: 计划产量：4800件
A3: 成 本 项 目 | B3: 单位用量 | C3: 单价（元） | D3: 单位成本 | E3: 总成本
A4: 直接材料(P材料) | B4: 6 | C4: 8 | D4: =B4*C4 -> 48 | E4: =D4*4800 -> 230400
A5: 直接人工 | B5: 4 | C5: 3 | D5: =B5*C5 -> 12 | E5: =D5*4800 -> 57600
A6: 变动制造费用 | B6: 3 | C6: 4.5 | D6: 13.5 | E6: 64800
A7: 合计 | D7: =SUM(D4:D6) -> 73.5 | E7: =SUM(E4:E6) -> 352800
A8: 加：在产品及自制半成品期初余额 | E8: 0
A9: 减：在产品及自制半成品期末余额 | E9: 0
A10: 预计产品生产成本 | E10: =SUM(E7:E9) -> 352800
A11: 加：产成品期初余额 | E11: =E13+E12-E10 -> 7350
A12: 减：产成品期末余额 | E12: =73.5*150 -> 11025
A13: 预计产品销售成本 | E13: =73.5*4750 -> 349125
A15: 产品成本预算（B产品）
A16: 计划产量：4500件
A17: 成 本 项 目 | B17: 单位用量 | C17: 单价（元） | D17: 单位成本 | E17: 总成本
A18: 直接材料(Q材料) | B18: 5 | C18: 7 | D18: =B18*C18 -> 35 | E18: =D18*4500 -> 157500
A19: 直接人工 | B19: 4 | C19: 3 | D19: =B19*C19 -> 12 | E19: =D19*4500 -> 54000
A20: 变动制造费用 | B20: 3 | C20: 4.5 | D20: 13.5 | E20: =D20*4500 -> 60750
A21: 合计 | D21: =SUM(D18:D20) -> 60.5 | E21: =SUM(E18:E20) -> 272250
A22: 加：在产品及自制半成品期初余额 | E22: 0
A23: 减：在产品及自制半成品期末余额 | E23: 0
A24: 预计产品生产成本 | E24: =SUM(E21:E23) -> 272250
A25: 加：产成品期初余额 | E25: =E27+E26-E24 -> 30570
A26: 减：产成品期末余额 | E26: =73.5*70 -> 5145
A27: 预计产品销售成本 | E27: =73.5*4050 -> 297675

Sheet 销售及管理费用预算
A1: 销售费用和管理费用预算
B2: 单位：元
A3: 项目 | B3: 金额
A4: 销售费用
A5: 销售人员工资 | B5: 1500
A6: 广告费 | B6: 4500
A7: 包装运输费 | B7: 2500
A8: 保管费 | B8: 1000
A9: 管理费用
A10: 管理人员薪金 | B10: 2800
A11: 福利费 | B11: 1000
A12: 保险费 | B12: 450
A13: 办公费 | B13: 1500
A14: 合计 | B14: =SUM(B5:B13) -> 15250
A15: 每季度支出 | B15: =B14/4 -> 3812.5
